fUST/lending_fUST_20240508
["ID","MTS","AMOUNT","RATE_DAILY","PERIOD"]
[326615193,1715149644146,-343.0,0.00018341,2]
[326615194,1715149644167,-2145.45,0.00018439,2]
[326615195,1715149644189,-2453.27,0.00018439,2]
[326615196,1715149644210,-411.01899473,0.00018439,2]
[326615197,1715149644231,-500.0,0.00018439,2]
[326615198,1715149644251,-1696.58,0.00018439,2]
[326615199,1715149644274,-786.21,0.00018439,2]
[326615200,1715149644294,-602.47,0.00018439,2]
[326615201,1715149644315,-778.09,0.00018439,2]
[326615202,1715149644335,-500.0,0.00018439,2]
[326615203,1715149644355,-500.0,0.00018439,2]
[326615204,1715149644376,-632.02,0.00018439,2]
[326615205,1715149644398,-829.23,0.00018439,2]
[326615206,1715149644419,-500.0,0.00018439,2]
[326615207,1715149644442,-348.27877366,0.00018439,2]
[326615208,1715149644463,-720.27,0.0001844,2]
[326615209,1715149644484,-500.0,0.0001844,2]
[326615210,1715149644506,-666.13,0.0001844,2]
[326615211,1715149644527,-589.7,0.0001844,2]
[326615212,1715149644548,-607.7,0.0001844,2]
[326615213,1715149644569,-500.0,0.0001844,2]
[326615214,1715149644591,-1976.80101913,0.0001844,2]
[326615215,1715149645067,-500.0,0.00015151,2]
[326615216,1715149645088,-500.0,0.00015425,2]
[326615217,1715149645112,-500.0,0.00015699,2]
[326615218,1715149645133,-500.0,0.00015973,2]
[326615219,1715149645154,-500.0,0.00016247,2]
[326615220,1715149645175,-427.24,0.00016521,2]
[326615221,1715149645197,-153.0,0.0001815,2]
[326615222,1715149645218,-6340.29898087,0.0001844,2]
[326615223,1715149645238,-711.11,0.0001844,2]
[326615224,1715149645258,-1548.95,0.0001844,2]
[326615225,1715149645278,-570.29,0.0001844,2]
[326615226,1715149645300,-2832.08,0.0001844,2]
[326615227,1715149645320,-1356.32,0.0001844,2]
[326615228,1715149645341,-1193.45,0.0001844,2]
[326615229,1715149645362,-2330.2,0.0001844,2]
[326615230,1715149645382,-821.67,0.0001844,2]
[326615231,1715149645404,-1286.52,0.0001844,2]
[326615232,1715149645424,-500.0,0.0001844,2]
[326615233,1715149645444,-1329.9,0.0001844,2]
[326615234,1715149645465,-1395.98,0.0001844,2]
[326615235,1715149645487,-2033.32,0.0001844,2]
[326615236,1715149645508,-500.0,0.00018441,2]
[326615237,1715149645529,-500.0,0.00018441,2]
[326615238,1715149645549,-577.81546624,0.00018441,2]
[326615239,1715149645570,-1160.43756324,0.000185,2]
[326615240,1715149645590,-1000.0,0.000185,2]
[326615241,1715149645610,-589.0,0.000186,2]
[326615242,1715149645632,-343.0,0.00018613,2]
[326615243,1715149645654,-2453.27,0.00018713,2]
[326615244,1715149645676,-500.0,0.00018713,2]
[326615245,1715149645699,-1696.58,0.00018713,2]
[326615246,1715149645721,-786.21,0.00018713,2]
[326615247,1715149645742,-602.47,0.00018713,2]
[326615248,1715149645762,-778.09,0.00018713,2]
[326615249,1715149645783,-500.0,0.00018713,2]
[326615250,1715149645804,-500.0,0.00018713,2]
[326615251,1715149645824,-632.02,0.00018713,2]
[326615252,1715149645845,-829.23,0.00018713,2]
[326615253,1715149645866,-500.0,0.00018713,2]
[326615254,1715149645885,-720.27,0.00018714,2]
[326615255,1715149645905,-500.0,0.00018714,2]
[326615256,1715149645926,-666.13,0.00018714,2]
[326615257,1715149645947,-589.7,0.00018714,2]
[326615258,1715149645967,-607.7,0.00018714,2]
[326615259,1715149645986,-500.0,0.00018714,2]
[326615260,1715149646008,-8317.1,0.00018714,2]
[326615261,1715149646029,-711.11,0.00018714,2]
[326615262,1715149646054,-1548.95,0.00018714,2]
[326615263,1715149646073,-570.29,0.00018714,2]
[326615264,1715149646093,-2832.08,0.00018714,2]
[326615265,1715149646117,-1356.32,0.00018714,2]
[326615266,1715149646138,-1193.45,0.00018714,2]
[326615267,1715149646157,-2330.2,0.00018714,2]
[326615268,1715149646179,-821.67,0.00018714,2]
[326615269,1715149646198,-1286.52,0.00018714,2]
[326615270,1715149646218,-500.0,0.00018714,2]
[326615271,1715149646237,-1329.9,0.00018714,2]
[326615272,1715149646257,-1395.98,0.00018714,2]
[326615273,1715149646276,-2033.32,0.00018714,2]
[326615274,1715149646296,-500.0,0.00018715,2]
[326615275,1715149646315,-500.0,0.00018715,2]
[326615276,1715149646334,-60056.31244072,0.00018734,2]
[326615277,1715149646353,-223.52910868,0.00018886,2]
[326615278,1715149646373,-343.0,0.00018886,2]
[326615279,1715149646392,-15025.49341156,0.000189,2]
[326615280,1715149646415,-153.0,0.00018973,2]
[326615281,1715149646437,-306.0,0.00018973,2]
[326615282,1715149646457,-2453.27,0.00018987,2]
[326615283,1715149646476,-214.30327562,0.00018987,2]
[326615284,1715149646498,-1696.58,0.00018987,2]
[326615285,1715149646520,-786.21,0.00018987,2]
[326615286,1715149646541,-778.09,0.00018987,2]
[326615287,1715149646561,-602.47,0.00018987,2]
[326615288,1715149646581,-500.0,0.00018987,2]
[326615289,1715149646602,-500.0,0.00018987,2]
[326615290,1715149646623,-632.02,0.00018987,2]
[326615291,1715149646643,-829.23,0.00018987,2]
[326615292,1715149646664,-500.0,0.00018987,2]
[326615293,1715149646686,-720.27,0.00018988,2]
[326615294,1715149646707,-500.0,0.00018988,2]
[326615295,1715149646727,-666.13,0.00018988,2]
[326615296,1715149646747,-589.7,0.00018988,2]
[326615297,1715149646767,-607.7,0.00018988,2]
[326615298,1715149646787,-500.0,0.00018988,2]
[326615299,1715149646809,-8317.1,0.00018988,2]
[326615300,1715149646829,-711.11,0.00018988,2]
[326615301,1715149646850,-1548.95,0.00018988,2]
[326615302,1715149646871,-570.29,0.00018988,2]
[326615303,1715149646891,-2832.08,0.00018988,2]
[326615304,1715149646913,-1356.32,0.00018988,2]
[326615305,1715149646938,-1193.45,0.00018988,2]
[326615306,1715149646959,-2330.2,0.00018988,2]
[326615307,1715149646979,-821.67,0.00018988,2]
[326615308,1715149647000,-1286.52,0.00018988,2]
[326615309,1715149647020,-500.0,0.00018988,2]
[326615310,1715149647041,-1329.9,0.00018988,2]
[326615311,1715149647060,-1395.98,0.00018988,2]
[326615312,1715149647082,-2033.32,0.00018988,2]
[326615313,1715149647102,-500.0,0.00018989,2]
[326615314,1715149647125,-500.0,0.00018989,2]
[326615315,1715149647144,-19329.84473307,0.00019,2]
[326615316,1715149776836,24900.0,0.00014426,2]
[326615418,1715149839263,-260.68975276,0.0001515,2]
[326615421,1715149839274,-500.0,0.00015151,2]
[326615423,1715149839283,-500.0,0.00015151,2]
[326615426,1715149839295,-574.65,0.00015151,2]
[326615427,1715149839304,-500.0,0.00015151,2]
[326615429,1715149839314,-500.0,0.00015151,2]
[326615431,1715149839324,-633.73,0.00015151,2]
[326615433,1715149839334,-500.0,0.00015151,2]
[326615436,1715149839344,-500.0,0.00015151,2]
[326615437,1715149839354,-500.0,0.00015151,2]
[326615439,1715149839364,-285.42223799,0.00015151,2]
[326615468,1715149840822,-450.29776201,0.00015151,2]
[326615469,1715149840832,-500.0,0.00015151,2]
[326615470,1715149840842,-500.0,0.00015151,2]
[326615471,1715149840851,-679.04,0.00015151,2]
[326615472,1715149840863,-654.52,0.00015151,2]
[326615473,1715149840873,-500.0,0.00015151,2]
[326615474,1715149840882,-438.61248861,0.00015151,2]
[326615475,1715149840892,-500.0,0.00015151,2]
[326615476,1715149840902,-1000.85,0.00015151,2]
[326615477,1715149840911,-500.0,0.00015151,2]
[326615478,1715149840921,-500.0,0.00015151,2]
[326615479,1715149840930,-500.0,0.00015151,2]
[326615480,1715149840939,-500.0,0.00015151,2]
[326615481,1715149840949,-500.0,0.00015151,2]
[326615482,1715149840958,-4053.6,0.00015151,2]
[326615483,1715149840967,-500.0,0.00015151,2]
[326615484,1715149840976,-587.41,0.00015152,2]
[326615485,1715149840986,-1380.88,0.00015152,2]
[326615486,1715149840995,-873.83,0.00015152,2]
[326615487,1715149841005,-500.0,0.00015152,2]
[326615488,1715149841014,-500.0,0.00015425,2]
[326615489,1715149841024,-500.0,0.00015425,2]
[326615490,1715149841034,-574.65,0.00015425,2]
[326615491,1715149841045,-500.0,0.00015425,2]
[326615492,1715149841054,-500.0,0.00015425,2]
[326615493,1715149841064,-633.73,0.00015425,2]
[326615494,1715149841075,-500.0,0.00015425,2]
[326615495,1715149841085,-500.0,0.00015425,2]
[326615496,1715149841094,-500.0,0.00015425,2]
[326615497,1715149841106,-735.72,0.00015425,2]
[326615498,1715149841115,-500.0,0.00015425,2]
[326615499,1715149841125,-500.0,0.00015425,2]
[326615500,1715149841135,-679.04,0.00015425,2]
[326615501,1715149841145,-654.52,0.00015425,2]
[326615502,1715149841155,-500.0,0.00015425,2]
[326615503,1715149841165,-500.0,0.00015425,2]
[326615504,1715149841175,-1000.85,0.00015425,2]
[326615505,1715149841184,-500.0,0.00015425,2]
[326615506,1715149841194,-500.0,0.00015425,2]
[326615507,1715149841209,-500.0,0.00015425,2]
[326615508,1715149841218,-1227.27,0.00015425,2]
[326615509,1715149841227,-500.0,0.00015425,2]
[326615510,1715149841237,-500.0,0.00015425,2]
[326615511,1715149841246,-1338.52,0.00015425,2]
[326615512,1715149841258,-500.0,0.00015425,2]
[326615513,1715149841268,-4053.6,0.00015425,2]
[326615514,1715149841278,-500.0,0.00015425,2]
[326615515,1715149841288,-500.0,0.00015425,2]
[326615516,1715149841298,-587.41,0.00015426,2]
[326615517,1715149841307,-1380.88,0.00015426,2]
[326615518,1715149841316,-873.83,0.00015426,2]
[326615519,1715149841326,-500.0,0.00015426,2]
[326615520,1715149841335,-500.0,0.00015699,2]
[326615521,1715149841344,-500.0,0.00015699,2]
[326615522,1715149841355,-574.65,0.00015699,2]
[326615523,1715149841364,-500.0,0.00015699,2]
[326615524,1715149841373,-633.73,0.00015699,2]
[326615525,1715149841382,-500.0,0.00015699,2]
[326615526,1715149841391,-500.0,0.00015699,2]
[326615527,1715149841401,-164.05285402,0.00015699,2]
[326615528,1715149841410,-735.72,0.00015699,2]
[326615529,1715149841420,-500.0,0.00015699,2]
[326615530,1715149841429,-679.04,0.00015699,2]
[326615531,1715149841438,-654.52,0.00015699,2]
[326615532,1715149841448,-500.0,0.00015699,2]
[326615533,1715149841456,-1000.85,0.00015699,2]
[326615534,1715149841465,-500.0,0.00015699,2]
[326615535,1715149841475,-1227.27,0.00015699,2]
[326615536,1715149841484,-509.78163345,0.00015699,2]
[326615661,1715149842640,-318.6130352,0.00015151,2]
[326616267,1715149848094,-181.3869648,0.00015151,2]
[326616269,1715149848103,-775.07,0.00015151,2]
[326616271,1715149848117,-500.0,0.00015151,2]
[326616273,1715149848126,-500.0,0.00015152,2]
[326616275,1715149848135,-500.0,0.00015425,2]
[326616277,1715149848143,-775.07,0.00015425,2]
[326616279,1715149848153,-500.0,0.00015425,2]
[326616281,1715149848162,-500.0,0.00015426,2]
[326616283,1715149848171,-23.90680397,0.00015699,2]
[326616285,1715149848180,-500.0,0.00015699,2]
[326616287,1715149848189,-1338.52,0.00015699,2]
[326616289,1715149848198,-385.04106683,0.00015699,2]
[326616290,1715149848211,-2020.75636034,0.00015699,2]
[326616799,1715149853478,-1382.87460767,0.00015699,2]
[326619303,1715149963655,1096.053426,0.00014568,2]
[326619304,1715150050227,929.6379252,0.00014652,2]
[326619305,1715150152337,14902.71647319,0.00014652,2]
[326619307,1715150188846,1713.52039077,9.999e-05,2]
[326619314,1715150286727,260.68975276,9.999e-05,2]
[326619328,1715150360878,3709.0,0.00019,10]
[326619334,1715150422978,769.97551352,0.00014374,2]
[326619339,1715150495366,548.026713,0.00014631,2]
[326619341,1715150499454,260.68975276,0.0001463,2]
[326619343,1715150564317,7581.70851547,0.00026444,120]
[326619344,1715150564352,30000.0,0.00026444,120]
[326619345,1715150564407,12418.29148453,0.00026444,120]
[326619346,1715150635162,2657.24864455,0.00015,2]
[326619347,1715150647295,151.0,0.00015,2]
[326619348,1715150725558,154.64431807,9.999e-05,2]
[326619349,1715150730548,250.0,0.00014623,2]
[326619350,1715150737765,260.68975276,0.00014622,2]
[326619393,1715151044847,-500.0,0.00015151,2]
[326619396,1715151044858,-1717.83463139,0.00015424,2]
[326619399,1715151044868,-599.62911852,0.00015425,2]
[326619401,1715151044879,-801.01,0.00015425,2]
[326619406,1715151044889,-516.38818195,0.00015698,2]
[326619409,1715151044899,-500.0,0.00015698,2]
[326619425,1715151045087,-512.0400704,0.00015698,2]
[326619427,1715151045102,-500.0,0.00015698,2]
[326619429,1715151045112,-500.0,0.00015698,2]
[326619431,1715151045122,-557.67,0.00015698,2]
[326619433,1715151045131,-500.0,0.00015698,2]
[326619435,1715151045140,-500.0,0.00015698,2]
[326619436,1715151045150,-500.0,0.00015698,2]
[326619438,1715151045159,-500.0,0.00015698,2]
[326619440,1715151045169,-500.0,0.00015698,2]
[326619441,1715151045178,-512.19901353,0.00015698,2]
[326619442,1715151045187,-500.0,0.00015698,2]
[326619443,1715151045196,-505.08159609,0.00015698,2]
[326619444,1715151045205,-500.0,0.00015698,2]
[326619445,1715151045214,-594.16,0.00015698,2]
[326619446,1715151045223,-926.24,0.00015698,2]
[326619447,1715151045233,-500.0,0.00015698,2]
[326619448,1715151045242,-500.0,0.00015698,2]
[326619449,1715151045251,-709.82,0.00015698,2]
[326619450,1715151045260,-500.0,0.00015698,2]
[326619451,1715151045269,-500.0,0.00015698,2]
[326619452,1715151045278,-3573.98,0.00015698,2]
[326619453,1715151045287,-500.0,0.00015698,2]
[326619454,1715151045296,-500.0,0.00015698,2]
[326619455,1715151045305,-1265.81,0.00015698,2]
[326619456,1715151045314,-638.93318085,0.00015698,2]
[326619457,1715151045324,-801.01,0.00015699,2]
[326619458,1715151045335,-163.17292,0.0001589,2]
[326619459,1715151045344,-296.187446,0.0001589,2]
[326619460,1715151045354,-150.0,0.00015921,2]
[326619461,1715151045363,-150.0,0.00015921,2]
[326619462,1715151045372,-818.68188629,0.00015971,2]
[326619463,1715151045381,-1226.98,0.00015971,2]
[326619464,1715151045391,-1125.0,0.00015971,2]
[326619465,1715151045406,-500.0,0.00015971,2]
[326619466,1715151045416,-643.75,0.00015971,2]
[326619467,1715151045426,-500.0,0.00015971,2]
[326619468,1715151045435,-500.0,0.00015971,2]
[326619469,1715151045446,-500.0,0.00015972,2]
[326619470,1715151045455,-500.0,0.00015972,2]
[326619471,1715151045466,-500.0,0.00015972,2]
[326619472,1715151045484,-500.0,0.00015972,2]
[326619473,1715151045501,-500.0,0.00015972,2]
[326619474,1715151045511,-500.0,0.00015972,2]
[326619475,1715151045521,-500.0,0.00015972,2]
[326619476,1715151045529,-500.0,0.00015972,2]
[326619477,1715151045539,-500.0,0.00015972,2]
[326619478,1715151045548,-500.0,0.00015972,2]
[326619479,1715151045557,-500.0,0.00015972,2]
[326619480,1715151045567,-594.16,0.00015972,2]
[326619481,1715151045577,-500.0,0.00015972,2]
[326619482,1715151045588,-500.0,0.00015972,2]
[326619483,1715151045598,-926.24,0.00015972,2]
[326619484,1715151045607,-500.0,0.00015972,2]
[326619485,1715151045616,-710.48,0.00015972,2]
[326619486,1715151045625,-500.0,0.00015972,2]
[326619487,1715151045635,-500.0,0.00015972,2]
[326619488,1715151045644,-709.82,0.00015972,2]
[326619489,1715151045653,-485.19078087,0.00015972,2]
[326619502,1715151059647,-500.0,0.00015698,2]
[326619504,1715151059659,-500.0,0.00015698,2]
[326619506,1715151059669,-500.0,0.00015971,2]
[326619507,1715151059679,-214.13921913,0.00015972,2]
[326619509,1715151059688,-500.0,0.00015972,2]
[326619511,1715151059698,-3573.98,0.00015972,2]
[326619513,1715151059708,-500.0,0.00015972,2]
[326619515,1715151059718,-502.82,0.00015972,2]
[326619517,1715151059727,-554.52,0.00015972,2]
[326619519,1715151059736,-572.7,0.00015972,2]
[326619521,1715151059746,-500.0,0.00015972,2]
[326619523,1715151059755,-1265.81,0.00015972,2]
[326619525,1715151059764,-500.0,0.00015972,2]
[326619527,1715151059773,-500.0,0.00015972,2]
[326619529,1715151059783,-500.0,0.00015973,2]
[326619531,1715151059792,-500.0,0.00015973,2]
[326619533,1715151059801,-500.0,0.00015973,2]
[326619535,1715151059810,-500.0,0.00015973,2]
[326619537,1715151059819,-500.0,0.00015973,2]
[326619538,1715151059828,-500.0,0.00015973,2]
[326619540,1715151059837,-500.0,0.00015973,2]
[326619542,1715151059846,-500.0,0.00015973,2]
[326619543,1715151059856,-500.0,0.00015973,2]
[326619544,1715151059865,-500.0,0.00015973,2]
[326619545,1715151059874,-500.0,0.00015973,2]
[326619546,1715151059884,-500.0,0.00015973,2]
[326619547,1715151059893,-500.0,0.00015973,2]
[326619548,1715151059902,-21.89019246,0.00015973,2]
[326619549,1715151059914,-415.11121662,0.00015973,2]
[326619563,1715151377464,154.64431807,9.999e-05,2]
[326619564,1715151479856,897.03208422,9.999e-05,2]
[326619565,1715151481629,1733.04737402,9.999e-05,2]
[326619566,1715151582130,304.03316326,9.999e-05,2]
[326619567,1715151732967,548.026713,0.00014946,2]
[326619568,1715152031353,154.64431807,9.999e-05,2]
[326619569,1715152071667,2462.86400871,0.00015,2]
[326619570,1715152089835,1623.91241692,9.999e-05,2]
[326619571,1715152099663,1641.90933914,0.00015,2]
[326619572,1715152116614,1368.25778262,0.00015,2]
[326619573,1715152127792,223.39783364,0.00015,2]
[326619574,1715152129111,4234.1215094,0.00015,2]
[326619575,1715152142925,712.86230474,0.00015,2]
[326619576,1715152157691,712.86230474,0.00015,2]
[326619577,1715152175000,712.86230474,0.00015,2]
[326619582,1715152193686,712.86230474,0.00015,2]
[326619583,1715152209690,712.86230474,0.00015,2]
[326619584,1715152232580,712.86230474,0.00015,2]
[326619590,1715152242555,-154.89250458,0.00015432,2]
[326619593,1715152242564,-154.44242609,0.0001589,2]
[326619707,1715152249690,712.86230474,0.00015,2]
[326619719,1715152256730,274.013356,0.00014982,2]
[326619720,1715152267366,712.86230474,0.00015,2]
[326619721,1715152288154,1400.17327806,9.999e-05,2]
[326619722,1715152295100,712.86230474,0.00015,2]
[326619723,1715152311009,712.86230474,0.00015,2]
[326619724,1715152312083,1662.18591109,0.000211,9]
[326619725,1715152326987,712.86230474,0.00015,2]
[326619726,1715152353451,368.06134355,0.00015,2]
[326619727,1715152605627,521.97378661,9.999e-05,2]
[326619728,1715152788049,274.013356,0.00014989,2]
[326619729,1715152863328,154.64431807,0.00014989,2]
[326619730,1715152878648,1578.7542886,9.999e-05,2]
[326619731,1715152878705,154.64431807,0.00014989,2]
[326619732,1715152900892,154.64431807,0.00014989,2]
[326619733,1715152912941,1964.68970225,9.999e-05,2]
[326619734,1715152922873,155.76935837,0.00014989,2]
[326619736,1715153136208,154.64431807,9.999e-05,2]
[326619737,1715153347186,-150.0,0.00015879,2]
[326619738,1715153348954,-62.94893491,0.0001589,2]
[326619739,1715153349597,-347.429235,0.0001589,2]
[326619740,1715153349634,-167.925754,0.0001589,2]
[326619741,1715153350581,-159.966547,0.0001589,2]
[326619742,1715153350608,-816.50766108,0.00015969,2]
[326619743,1715153350632,-916.13080956,0.0001597,2]
[326619744,1715153350655,-155.02530096,0.00015996,2]
[326619745,1715153350678,-473.60917883,0.00015997,2]
[326619746,1715153350699,-154.78682583,0.00015997,2]
[326619747,1715153350723,-2395.29274351,0.00015997,2]
[326619748,1715153350745,-285.60165876,0.00015997,2]
[326619749,1715153350767,-816.12984113,0.00015997,2]
[326619750,1715153350788,-154.67518212,0.00015997,2]
[326619751,1715153350810,-1580.4729422,0.00015997,2]
[326619752,1715153350832,-1626.59326651,0.00015998,2]
[326619753,1715153350855,-500.0,0.00015998,2]
[326619754,1715153350877,-500.0,0.00015998,2]
[326619755,1715153350909,-500.0,0.00015998,2]
[326619756,1715153350936,-500.0,0.00015998,2]
[326619757,1715153350958,-500.0,0.00015998,2]
[326619758,1715153350980,-277.63915631,0.00015999,2]
[326619759,1715153351003,-500.0,0.00015999,2]
[326619760,1715153351025,-500.0,0.00015999,2]
[326619761,1715153351046,-500.0,0.00015999,2]
[326619762,1715153351071,-500.0,0.00015999,2]
[326619763,1715153351091,-500.0,0.00015999,2]
[326619764,1715153351114,-500.0,0.00015999,2]
[326619765,1715153351137,-500.0,0.00015999,2]
[326619766,1715153351159,-500.0,0.00015999,2]
[326619767,1715153351181,-327.89169166,0.00015999,2]
[326619768,1715153351202,-7949.13788461,0.00016,2]
[326619769,1715153351224,-894.24108922,0.00016214,2]
[326619770,1715153351247,-366.59893271,0.00016216,2]
[326619771,1715153351270,-500.0,0.00016216,2]
[326619772,1715153351292,-500.0,0.00016216,2]
[326619773,1715153351314,-500.0,0.00016216,2]
[326619774,1715153351336,-500.0,0.00016216,2]
[326619775,1715153351357,-395.28772496,0.00016218,2]
[326619776,1715153351379,-151.0,0.0001623,2]
[326619777,1715153351401,-5018.10150378,0.0001623,2]
[326619778,1715153351423,-185.02185363,0.00016244,2]
[326619779,1715153351445,-154.80968392,0.00016244,2]
[326619780,1715153351466,-154.65974855,0.00016245,2]
[326619781,1715153351488,-240.79243986,0.00016245,2]
[326619782,1715153351513,-251.65121823,0.00016245,2]
[326619783,1715153351534,-154.76777427,0.00016271,2]
[326619784,1715153351556,-507.99,0.00016272,2]
[326619785,1715153351578,-500.0,0.00016272,2]
[326619786,1715153351598,-500.0,0.00016272,2]
[326619787,1715153351620,-500.0,0.00016273,2]
[326619788,1715153351641,-500.0,0.00016273,2]
[326619789,1715153351663,-500.0,0.00016273,2]
[326619790,1715153351684,-500.0,0.00016273,2]
[326619791,1715153351706,-500.0,0.00016273,2]
[326619792,1715153351731,-500.0,0.00016273,2]
[326619793,1715153351754,-157.98915557,0.00016273,2]
[326619794,1715153351776,-500.0,0.0001649,2]
[326619795,1715153351798,-500.0,0.0001649,2]
[326619796,1715153351820,-151.0,0.0001649,2]
[326619797,1715153351842,-441.53624177,0.00016518,2]
[326619798,1715153351862,-793.57313981,0.0001652,2]
[326619799,1715153351884,-309.16301887,0.0001652,2]
[326619800,1715153351906,-1500.0,0.00016545,2]
[326619801,1715153351929,-500.0,0.00016546,2]
[326619802,1715153351950,-500.0,0.00016546,2]
[326619803,1715153352001,273.39263722,0.000165,2]
[326619804,1715153352057,-306.0,0.000166,2]
[326619805,1715153352080,-500.0,0.00016764,2]
[326619806,1715153352104,-500.0,0.00016764,2]
[326619807,1715153352124,-151.0,0.00016764,2]
[326619808,1715153352146,-500.0,0.0001682,2]
[326619809,1715153352170,-414.22151504,0.0001682,2]
[326619810,1715153352192,-500.0,0.00017038,2]
[326619811,1715153352214,-500.0,0.00017038,2]
[326619812,1715153352237,-285.11656858,0.00017068,2]
[326619813,1715153352258,-235.93722029,0.00017068,2]
[326619814,1715153352278,-500.0,0.00017094,2]
[326619815,1715153356756,306.0,0.000166,2]
[326619820,1715153424925,281.378073,0.0001589,2]
[326619922,1715153441777,-168.7780671,0.0001726,2]
[326619925,1715153441787,-160.8557021,0.0001726,2]
[326619928,1715153441796,-307.6345172,0.0001726,2]
[326619931,1715153441807,-306.1762104,0.0001726,2]
[326619934,1715153441816,-306.0,0.0001726,2]
[326619936,1715153441825,-151.0,0.00017329,2]
[326619937,1715153441834,-168.19104647,0.00017329,2]
[326619938,1715153442027,-3388.47783665,0.00017329,2]
[326619939,1715153442037,-306.0,0.00017329,2]
[326619940,1715153442046,-153.0,0.00017329,2]
[326619941,1715153442057,-153.0,0.00017329,2]
[326619942,1715153442066,-306.0,0.00017329,2]
[326619943,1715153442075,-153.0,0.00017329,2]
[326619944,1715153442085,-153.0,0.00017329,2]
[326619945,1715153442094,-153.0,0.00017329,2]
[326619946,1715153442104,-200.46375748,0.00017342,2]
[326619947,1715153442113,-500.0,0.00017368,2]
[326619948,1715153442125,-500.0,0.00017642,2]
[326619949,1715153442134,-306.0,0.0001788,2]
[326619950,1715153442152,-156.9622489,0.0001788,2]
[326619951,1715153442164,-894.24108922,0.00017915,2]
[326619952,1715153442174,-273.39263722,0.00017915,2]
[326619953,1715153442183,-7949.13788461,0.00017915,2]
[326619954,1715153442193,-500.0,0.00017916,2]
[326619955,1715153442203,-875.15312907,0.00018,2]
[326619956,1715153442213,-154.64431807,0.00018,2]
[326619957,1715153442222,-151.0,0.00018134,2]
[326619958,1715153442232,-153.0,0.00018151,2]
[326619959,1715153442246,-153.0,0.00018151,2]
[326619960,1715153442255,-153.0,0.00018151,2]
[326619961,1715153442265,-153.0,0.00018151,2]
[326619962,1715153442274,-226.82275963,0.00018163,2]
[326619963,1715153442284,-275.69316102,0.00018164,2]
[326619964,1715153442295,-1057.88956582,0.00018164,2]
[326619965,1715153442306,-500.0,0.0001819,2]
[326619966,1715153442316,-620.05228013,0.00018245,2]
[326619967,1715153442325,-500.0,0.00018464,2]
[326619968,1715153442335,-1160.50835166,0.000185,2]
[326619969,1715153442344,-299.627829,0.00018682,2]
[326619970,1715153442354,-155.85743816,0.00018712,2]
[326619971,1715153442364,-201.26803244,0.00018712,2]
[326619972,1715153442374,-500.0,0.00018738,2]
[326619973,1715153442383,-2000.0,0.00018813,2]
[326619974,1715153442393,-2000.0,0.000189,3]
[326619975,1715153442402,-212.60431451,0.000189,2]
[326619976,1715153442412,-153.0,0.00018973,2]
[326619977,1715153442421,-306.0,0.00018973,2]
[326619978,1715153442431,-155.14890182,0.00018998,2]
[326619979,1715153442440,-291.89767916,0.00018998,2]
[326619980,1715153442450,-155.1005922,0.00018998,2]
[326619981,1715153442460,-207.04612451,0.00018998,2]
[326619982,1715153442470,-11579.95540494,0.00019,2]
[326619983,1715153442483,-342.767362,0.00019,2]